fUSD/lending_fUSD_20250410
["ID","MTS","AMOUNT","RATE_DAILY","PERIOD"]
[357666673,1744297846778,-195.920566,0.00038356,4]
[357666674,1744297846787,-168.216734,0.00038356,4]
[357666675,1744297846797,-790.063741,0.00038356,4]
[357666676,1744297846806,-519.52654055,0.00038356,4]
[357666677,1744297846815,-500.0,0.00038356,4]
[357666678,1744297846824,-500.0,0.00038356,4]
[357666679,1744297846834,-500.0,0.00038356,4]
[357666680,1744297846843,-993.741858,0.00038356,4]
[357666681,1744297846853,-500.0,0.00038356,4]
[357666682,1744297846863,-500.0,0.00038356,4]
[357666683,1744297846872,-500.0,0.00038356,4]
[357666684,1744297846882,-511.04,0.00038356,4]
[357666685,1744297846891,-500.0,0.00038356,4]
[357666686,1744297846901,-500.0,0.00038356,4]
[357666687,1744297846910,-500.0,0.00038356,4]
[357666688,1744297846920,-500.0,0.00038356,4]
[357666689,1744297846929,-500.0,0.00038356,4]
[357666690,1744297846939,-169.890464,0.00038356,4]
[357666691,1744297846948,-500.0,0.00038356,4]
[357666692,1744297846958,-500.0,0.00038356,4]
[357666693,1744297846969,-500.0,0.00038356,4]
[357666694,1744297846979,-500.0,0.00038356,4]
[357666695,1744297846988,-500.0,0.00038356,4]
[357666696,1744297846998,-500.0,0.00038356,4]
[357666697,1744297847008,-500.0,0.00038356,4]
[357666698,1744297847017,-500.0,0.00038356,4]
[357666699,1744297847027,-500.0,0.00038356,4]
[357666700,1744297847036,-500.0,0.00038356,4]
[357666701,1744297847046,-500.0,0.00038356,4]
[357666702,1744297847056,-500.0,0.00038356,4]
[357666703,1744297847066,-500.0,0.00038356,4]
[357666704,1744297847076,-500.0,0.00038356,4]
[357666705,1744297847085,-500.0,0.00038356,4]
[357666706,1744297847095,-500.0,0.00038356,4]
[357666707,1744297847104,-500.0,0.00038356,4]
[357666708,1744297847114,-505.16552087,0.00038356,4]
[357666709,1744297847123,-500.0,0.00038356,4]
[357666710,1744297847133,-500.0,0.00038356,4]
[357666711,1744297847142,-500.0,0.00038356,4]
[357666712,1744297847152,-506.47285493,0.00038356,4]
[357666713,1744297847162,-500.0,0.00038356,4]
[357666714,1744297847171,-500.0,0.00038356,4]
[357666715,1744297847181,-647.897966,0.00038356,4]
[357666716,1744297847191,-500.0,0.00038356,4]
[357666717,1744297847200,-500.0,0.00038356,4]
[357666718,1744297847210,-252.96777766,0.00038356,4]
[357666719,1744297847221,-500.0,0.00038356,4]
[357666720,1744297847230,-500.0,0.00038356,4]
[357666721,1744297847240,-500.0,0.00038356,4]
[357666722,1744297847250,-500.0,0.00038356,4]
[357666723,1744297847259,-500.0,0.00038356,4]
[357666724,1744297847269,-500.0,0.00038356,4]
[357666725,1744297847280,-500.0,0.00038356,4]
[357666726,1744297847289,-500.0,0.00038356,4]
[357666727,1744297847305,-500.0,0.00038356,4]
[357666728,1744297847325,-500.0,0.00038356,4]
[357666729,1744297847341,-500.0,0.00038356,4]
[357666730,1744297847359,-500.0,0.00038356,4]
[357666731,1744297847378,-413.37593279,0.00038356,4]
[357666732,1744297847393,-943.7,0.00038356,4]
[357666733,1744297847412,-496.24031768,0.00038356,4]
[357666734,1744297847431,-500.0,0.00038356,4]
[357666735,1744297847450,-554.22,0.00038356,4]
[357666736,1744297847470,-500.0,0.00038356,4]
[357666737,1744297847489,-500.0,0.00038356,4]
[357666738,1744297847512,-991.62,0.00038356,4]
[357666739,1744297847529,-450.61163393,0.00038356,4]
[357666740,1744297847545,-500.0,0.00038356,4]
[357666741,1744297847564,-383.67171339,0.00038356,4]
[357666742,1744297847578,-510.28,0.00038356,4]
[357666743,1744297847595,-500.0,0.00038356,4]
[357666744,1744297847610,-500.0,0.00038356,4]
[357666745,1744297847623,-214.26200377,0.00038356,4]
[357666746,1744297847640,-500.0,0.00038356,4]
[357666747,1744297847663,-500.0,0.00038356,4]
[357666748,1744297847679,-500.0,0.00038356,4]
[357666749,1744297847695,-500.0,0.00038356,4]
[357666750,1744297847710,-581.64,0.00038356,4]
[357666751,1744297847727,-500.0,0.00038356,4]
[357666752,1744297847742,-755.41,0.00038356,4]
[357666753,1744297847757,-500.0,0.00038356,4]
[357666754,1744297847772,-500.0,0.00038356,4]
[357666755,1744297847787,-500.0,0.00038356,4]
[357666756,1744297847801,-500.0,0.00038356,4]
[357666757,1744297847816,-1188.4,0.00038356,4]
[357666758,1744297847831,-500.0,0.00038356,4]
[357666759,1744297847846,-500.0,0.00038356,4]
[357666760,1744297847860,-500.0,0.00038356,4]
[357666761,1744297847875,-381.45415202,0.00038356,4]
[357666762,1744297847891,-241.79263459,0.00038356,2]
[357666763,1744297847906,-500.0,0.00038356,4]
[357666764,1744297847922,-500.0,0.00038356,4]
[357666765,1744297847937,-741.06,0.00038356,4]
[357666766,1744297847953,-337.40580273,0.00038356,4]
[357666767,1744297847969,-500.0,0.00038356,4]
[357666768,1744297847985,-500.0,0.00038356,4]
[357666769,1744297848004,-516.21082348,0.00038356,4]
[357666770,1744297848020,-523.72591013,0.00038356,4]
[357666771,1744297848036,-500.0,0.00038356,4]
[357666772,1744297848052,-500.0,0.00038356,4]
[357666773,1744297848069,-500.0,0.00038356,4]
[357666774,1744297848085,-500.0,0.00038356,4]
[357666775,1744297848101,-500.0,0.00038356,4]
[357666776,1744297848117,-901.77,0.00038356,4]
[357666777,1744297848132,-525.33,0.00038356,4]
[357666778,1744297848147,-1136.86,0.00038356,4]
[357666779,1744297848163,-500.0,0.00038356,4]
[357666780,1744297848178,-500.0,0.00038356,4]
[357666781,1744297848193,-530.6681954,0.00038356,4]
[357666782,1744297848209,-500.0,0.00038356,4]
[357666783,1744297848225,-517.05180691,0.00038356,4]
[357666784,1744297848241,-215.448265,0.00038356,4]
[357666785,1744297848256,-500.0,0.00038356,4]
[357666786,1744297848271,-500.0,0.00038356,4]
[357666787,1744297848286,-500.0,0.00038356,4]
[357666788,1744297848301,-740.03,0.00038356,4]
[357666789,1744297848319,-500.0,0.00038356,4]
[357666790,1744297848335,-665.46,0.00038356,4]
[357666791,1744297848351,-500.0,0.00038356,4]
[357666792,1744297848367,-501.50399477,0.00038356,4]
[357666793,1744297848382,-500.0,0.00038356,4]
[357666794,1744297848397,-919.95,0.00038356,4]
[357666795,1744297848413,-500.0,0.00038356,4]
[357666796,1744297848428,-590.55,0.00038356,4]
[357666797,1744297848444,-500.0,0.00038356,4]
[357666798,1744297848460,-648.9,0.00038356,4]
[357666799,1744297848477,-500.0,0.00038356,4]
[357666800,1744297848495,-514.23,0.00038356,4]
[357666801,1744297848511,-1736.58,0.00038356,4]
[357666802,1744297848526,-500.0,0.00038356,4]
[357666803,1744297848542,-780.44,0.00038356,4]
[357666804,1744297848556,-500.0,0.00038356,4]
[357666805,1744297848572,-500.0,0.00038356,4]
[357666806,1744297848588,-500.0,0.00038356,4]
[357666807,1744297848603,-500.0,0.00038356,4]
[357666808,1744297848619,-553.86418632,0.00038356,4]
[357666809,1744297848636,-500.0,0.00038356,4]
[357666810,1744297848653,-500.0,0.00038356,4]
[357666811,1744297848669,-500.0,0.00038356,4]
[357666812,1744297848686,-500.0,0.00038356,4]
[357666813,1744297848702,-500.0,0.00038356,4]
[357666814,1744297848719,-500.0,0.00038356,4]
[357666815,1744297848732,-500.0,0.00038356,4]
[357666816,1744297848742,-520.46367226,0.00038356,4]
[357666817,1744297848752,-500.0,0.00038356,4]
[357666818,1744297848761,-1062.6,0.00038356,4]
[357666819,1744297848771,-505.34886597,0.00038356,4]
[357666820,1744297848781,-500.0,0.00038356,4]
[357666821,1744297848791,-500.0,0.00038356,4]
[357666822,1744297848800,-500.0,0.00038356,4]
[357666823,1744297848810,-500.0,0.00038356,4]
[357666824,1744297848820,-500.0,0.00038356,4]
[357666825,1744297848830,-711.63,0.00038356,4]
[357666826,1744297848840,-500.0,0.00038356,4]
[357666827,1744297848849,-500.0,0.00038356,4]
[357666828,1744297849217,-500.0,0.00038356,4]
[357666829,1744297849242,-500.0,0.00038356,4]
[357666830,1744297849252,-500.0,0.00038356,4]
[357666831,1744297849262,-533.00568109,0.00038356,4]
[357666832,1744297849271,-500.0,0.00038356,4]
[357666833,1744297849281,-222.11953054,0.00038356,4]
[357666834,1744297849291,-517.84282842,0.00038356,4]
[357666835,1744297849301,-501.90361517,0.00038356,4]
[357666836,1744297849311,-500.0,0.00038356,4]
[357666837,1744297849321,-500.0,0.00038356,4]
[357666838,1744297849331,-762.57,0.00038356,4]
[357666839,1744297849342,-177.46218146,0.00038356,4]
[357666840,1744297849352,-500.0,0.00038356,4]
[357666841,1744297849362,-510.67,0.00038356,4]
[357666842,1744297849372,-635.90025917,0.00038356,4]
[357666843,1744297849381,-500.0,0.00038356,4]
[357666844,1744297849391,-500.0,0.00038356,4]
[357666845,1744297849401,-500.0,0.00038356,4]
[357666846,1744297849411,-575.7,0.00038356,4]
[357666847,1744297849420,-502.81083454,0.00038356,4]
[357666848,1744297849430,-500.0,0.00038356,4]
[357666849,1744297849440,-943.8,0.00038356,4]
[357666850,1744297849450,-1167.86,0.00038356,4]
[357666851,1744297849460,-500.0,0.00038356,4]
[357666852,1744297849471,-641.32,0.00038356,4]
[357666853,1744297849482,-512.67832416,0.00038356,4]
[357666854,1744297849494,-500.0,0.00038356,4]
[357666855,1744297849505,-500.0,0.00038356,4]
[357666856,1744297849514,-500.0,0.00038356,4]
[357666857,1744297849524,-626.23,0.00038356,4]
[357666858,1744297849535,-615.45,0.00038356,4]
[357666859,1744297849544,-298.04157827,0.00038356,4]
[357666860,1744297849553,-1006.39,0.00038356,4]
[357666861,1744297849563,-886.04,0.00038356,4]
[357666862,1744297849572,-500.0,0.00038356,4]
[357666863,1744297849582,-500.0,0.00038356,4]
[357666864,1744297849591,-500.0,0.00038356,4]
[357666865,1744297849600,-500.0,0.00038356,4]
[357666866,1744297849610,-619.79,0.00038356,4]
[357666867,1744297849619,-500.0,0.00038356,4]
[357666868,1744297849629,-500.0,0.00038356,4]
[357666869,1744297849638,-154.476202,0.00038356,7]
[357666870,1744297849647,-500.0,0.00038356,4]
[357666871,1744297849657,-503.82602837,0.00038356,4]
[357666872,1744297849666,-500.0,0.00038356,4]
[357666873,1744297849676,-500.0,0.00038356,4]
[357666874,1744297849685,-1457.58,0.00038356,4]
[357666875,1744297849695,-647.02,0.00038356,4]
[357666876,1744297849705,-500.0,0.00038356,4]
[357666877,1744297849714,-845.11,0.00038356,4]
[357666878,1744297849724,-638.46780255,0.00038356,4]
[357666879,1744297849733,-500.0,0.00038356,4]
[357666880,1744297849745,-500.0,0.00038356,4]
[357666881,1744297849754,-500.0,0.00038356,4]
[357666882,1744297849763,-500.0,0.00038356,4]
[357666883,1744297849773,-1742.6,0.00038356,4]
[357666884,1744297849782,-602.92,0.00038356,4]
[357666885,1744297849791,-531.52392186,0.00038356,4]
[357666886,1744297849800,-506.7266673,0.00038356,4]
[357666887,1744297849810,-500.0,0.00038356,4]
[357666888,1744297849819,-500.0,0.00038356,4]
[357666889,1744297849829,-500.0,0.00038356,4]
[357666890,1744297849838,-293.80376517,0.00038356,4]
[357666891,1744297849848,-151.0,0.00038356,7]
[357666892,1744297849857,-433.79296336,0.00038356,4]
[357666893,1744297849867,-500.0,0.00038356,4]
[357666894,1744297849876,-500.0,0.00038356,4]
[357666895,1744297849885,-579.1,0.00038356,4]
[357666896,1744297849895,-500.0,0.00038356,4]
[357666897,1744297849904,-500.0,0.00038356,4]
[357666898,1744297849913,-500.0,0.00038356,4]
[357666899,1744297849924,-1000.0,0.00038356,4]
[357666900,1744297849933,-500.0,0.00038356,4]
[357666901,1744297849943,-1273.33,0.00038356,4]
[357666902,1744297849952,-552.88,0.00038356,4]
[357666903,1744297849962,-500.0,0.00038356,4]
[357666904,1744297849972,-500.0,0.00038356,4]
[357666905,1744297849981,-500.0,0.00038356,4]
[357666906,1744297849990,-505.26,0.00038356,4]
[357666907,1744297849999,-1146.85,0.00038356,4]
[357666908,1744297850008,-1126.03,0.00038356,4]
[357666909,1744297850017,-500.0,0.00038356,4]
[357666910,1744297850027,-500.0,0.00038356,4]
[357666911,1744297850036,-568.00894017,0.00038356,4]
[357666912,1744297850045,-500.0,0.00038356,4]
[357666913,1744297850054,-2014.67,0.00038356,4]
[357666914,1744297850063,-500.0,0.00038356,4]
[357666915,1744297850073,-232.43786548,0.00038356,4]
[357666916,1744297850082,-500.0,0.00038356,4]
[357666917,1744297850091,-500.0,0.00038356,4]
[357666918,1744297850101,-500.0,0.00038356,4]
[357666919,1744297850110,-517.80916033,0.00038356,4]
[357666920,1744297850120,-500.0,0.00038356,4]
[357666921,1744297850129,-500.0,0.00038356,4]
[357666922,1744297850140,-506.24655864,0.00038356,4]
[357666923,1744297850149,-832.1,0.00038356,4]
[357666924,1744297850158,-500.0,0.00038356,4]
[357666925,1744297850167,-151.0,0.00038356,7]
[357666926,1744297850177,-500.0,0.00038356,4]
[357666927,1744297850186,-500.0,0.00038356,4]
[357666928,1744297850196,-1695.13,0.00038356,4]
[357666929,1744297850206,-1023.79,0.00038356,4]
[357666930,1744297850215,-792.09,0.00038356,4]
[357666931,1744297850225,-151.0,0.00038356,7]
[357666932,1744297850234,-500.0,0.00038356,4]
[357666933,1744297850244,-1008.79,0.00038356,4]
[357666934,1744297850253,-500.0,0.00038356,4]
[357666935,1744297850263,-500.0,0.00038356,4]
[357666936,1744297850272,-500.0,0.00038356,4]
[357666937,1744297850282,-2029.09,0.00038356,4]
[357666938,1744297850293,-500.0,0.00038356,4]
[357666939,1744297850302,-500.0,0.00038356,4]
[357666940,1744297850312,-500.0,0.00038356,4]
[357666941,1744297850322,-597.93,0.00038356,4]
[357666942,1744297850331,-500.0,0.00038356,4]
[357666943,1744297850340,-500.0,0.00038356,4]
[357666944,1744297850350,-500.0,0.00038356,4]
[357666945,1744297850359,-896.06,0.00038356,4]
[357666946,1744297850370,-500.0,0.00038356,4]
[357666947,1744297850379,-500.0,0.00038356,4]
[357666948,1744297850389,-500.0,0.00038356,4]
[357666949,1744297850399,-539.73,0.00038356,4]
[357666950,1744297850408,-539.73,0.00038356,4]
[357666951,1744297850418,-812.28,0.00038356,4]
[357666952,1744297850427,-539.73,0.00038356,4]
[357666953,1744297850437,-539.73,0.00038356,4]
[357666954,1744297850447,-151.0,0.00038356,7]
[357666955,1744297850457,-500.0,0.00038356,4]
[357666956,1744297850467,-151.0,0.00038356,7]
[357666957,1744297850478,-500.0,0.00038356,4]
[357666958,1744297850488,-500.0,0.00038356,4]
[357666959,1744297850502,-1323.09,0.00038356,4]
[357666960,1744297850511,-151.0,0.00038356,7]
[357666961,1744297850521,-2000.0,0.00038356,2]
[357666962,1744297850530,-446.98122747,0.00038356,4]
[357666963,1744297850598,-53.01877253,0.00038356,4]
[357666964,1744297850608,-512.43,0.00038356,4]
[357666965,1744297850617,-531.45279913,0.00038356,4]
[357666966,1744297850627,-383.30584113,0.00038356,4]
[357666967,1744297850643,-137.68415887,0.00038356,4]
[357666968,1744297850653,-121.65793824,0.00038356,4]
[357666969,1744297850664,-421.31299139,0.00038356,4]
[357666970,1744297850675,-500.0,0.00038356,4]
[357666971,1744297850685,-151.0,0.00038356,7]
[357666972,1744297850694,-500.0,0.00038356,4]
[357666973,1744297850704,-500.0,0.00038356,4]
[357666974,1744297850714,-500.0,0.00038356,4]
[357666975,1744297850724,-500.0,0.00038356,4]
[357666976,1744297850734,-521.55,0.00038356,4]
[357666977,1744297850744,-500.0,0.00038356,4]
[357666978,1744297850754,-151.0,0.00038356,7]
[357666979,1744297850763,-500.0,0.00038356,4]
[357666980,1744297850773,-500.0,0.00038356,4]
[357666981,1744297850782,-500.0,0.00038356,4]
[357666982,1744297850791,-500.0,0.00038356,4]
[357666983,1744297850801,-500.0,0.00038356,4]
[357666984,1744297850810,-1348.12,0.00038356,4]
[357666985,1744297850819,-500.0,0.00038356,4]
[357666986,1744297850829,-797.66,0.00038356,4]
[357666987,1744297850838,-500.0,0.00038356,4]
[357666988,1744297850847,-518.44123575,0.00038356,4]
[357666989,1744297850857,-500.0,0.00038356,4]
[357666990,1744297850866,-500.0,0.00038356,4]
[357666991,1744297850876,-500.0,0.00038356,4]
[357666992,1744297850885,-540.84,0.00038356,4]
[357666993,1744297850894,-500.0,0.00038356,4]
[357666994,1744297850904,-522.98433304,0.00038356,4]
[357666995,1744297850913,-945.05,0.00038356,4]
[357666996,1744297850922,-678.26,0.00038356,4]
[357666997,1744297850931,-612.12,0.00038356,4]
[357666998,1744297850940,-540.54,0.00038356,4]
[357666999,1744297850950,-500.0,0.00038356,4]
[357667000,1744297850959,-608.67,0.00038356,4]
[357667001,1744297850969,-225.82771257,0.00038356,4]
[357667002,1744297850978,-584.66,0.00038356,4]
[357667003,1744297850988,-500.0,0.00038356,4]
[357667004,1744297850997,-678.99,0.00038356,4]
[357667005,1744297851007,-500.0,0.00038356,4]
[357667006,1744297851016,-531.84,0.00038356,4]
[357667007,1744297851025,-500.0,0.00038356,4]
[357667008,1744297851035,-508.72,0.00038356,4]
[357667009,1744297851045,-500.0,0.00038356,4]
[357667010,1744297851054,-506.78,0.00038356,4]
[357667011,1744297851064,-500.0,0.00038356,4]
[357667012,1744297851072,-500.0,0.00038356,4]
[357667013,1744297851082,-650.4,0.00038356,4]
[357667014,1744297851092,-569.30855773,0.00038356,4]
[357667015,1744297851102,-500.0,0.00038356,4]
[357667016,1744297851111,-702.03,0.00038356,4]
[357667017,1744297851120,-500.0,0.00038356,4]
[357667018,1744297851130,-734.15,0.00038356,4]
[357667019,1744297851139,-587.61,0.00038356,4]
[357667020,1744297851148,-564.44580718,0.00038356,4]
[357667021,1744297851158,-151.0,0.00038356,7]
[357667022,1744297851167,-500.0,0.00038356,4]
[357667023,1744297851177,-796.06,0.00038356,4]
[357667024,1744297851186,-500.0,0.00038356,4]
[357667025,1744297851195,-500.0,0.00038356,4]
[357667026,1744297851205,-500.0,0.00038356,4]
[357667027,1744297851215,-500.0,0.00038356,4]
[357667028,1744297851226,-500.0,0.00038356,4]
[357667029,1744297851235,-500.0,0.00038356,4]
[357667030,1744297851244,-346.2,0.00038356,4]
[357667031,1744297851253,-718.67,0.00038356,4]
[357667032,1744297851262,-2487.71,0.00038356,4]
[357667033,1744297851271,-550.34,0.00038356,4]
[357667034,1744297851280,-1003.63,0.00038356,4]
[357667035,1744297851290,-500.0,0.00038356,4]
[357667036,1744297851299,-173.57200274,0.00038356,4]
[357667037,1744297851308,-500.0,0.00038356,4]
[357667038,1744297851317,-830.74,0.00038356,4]
[357667039,1744297851327,-500.0,0.00038356,4]
[357667040,1744297851336,-500.0,0.00038356,4]
[357667041,1744297851345,-1078.12,0.00038356,4]
[357667042,1744297851355,-500.0,0.00038356,4]
[357667043,1744297851364,-787.87,0.00038356,4]
[357667044,1744297851373,-517.49997013,0.00038356,4]
[357667045,1744297851383,-636.51633569,0.00038356,4]
[357667046,1744297851392,-500.0,0.00038356,4]
[357667047,1744297851401,-500.0,0.00038356,4]
[357667048,1744297851411,-2723.08,0.00038356,4]
[357667049,1744297851420,-500.0,0.00038356,4]
[357667050,1744297851430,-858.03,0.00038356,4]
[357667051,1744297851439,-321.36382213,0.00038356,4]
[357667052,1744297851449,-500.0,0.00038356,4]
[357667053,1744297851458,-692.2,0.00038356,4]
[357667054,1744297851469,-512.16,0.00038356,4]
[357667055,1744297851478,-151.0,0.00038356,7]
[357667056,1744297851488,-573.07,0.00038356,4]
[357667057,1744297851501,-660.96,0.00038356,4]
[357667058,1744297851511,-500.0,0.00038356,4]
[357667059,1744297851520,-500.0,0.00038356,4]
[357667060,1744297851530,-500.0,0.00038356,4]
[357667061,1744297851545,-500.0,0.00038356,4]
[357667062,1744297851554,-500.0,0.00038356,4]
[357667063,1744297851564,-523.38142361,0.00038356,4]
[357667064,1744297851575,-500.0,0.00038356,4]
[357667065,1744297851584,-500.0,0.00038356,4]
[357667066,1744297851594,-626.52,0.00038356,4]
[357667067,1744297851603,-500.0,0.00038356,4]
[357667068,1744297851613,-500.0,0.00038356,4]
[357667069,1744297851624,-1172.16,0.00038356,4]
[357667070,1744297851634,-500.0,0.00038356,4]
[357667071,1744297851643,-500.0,0.00038356,4]
[357667072,1744297851653,-533.58666719,0.00038356,4]
[357667073,1744297851662,-500.0,0.00038356,4]
[357667074,1744297851671,-500.0,0.00038356,4]
[357667075,1744297851681,-1821.77,0.00038356,4]
[357667076,1744297851690,-512.12428487,0.00038356,4]
[357667077,1744297851699,-1167.05,0.00038356,4]
[357667078,1744297851709,-701.61,0.00038356,4]
[357667079,1744297851719,-500.0,0.00038356,4]
[357667080,1744297851728,-503.99660538,0.00038356,4]
[357667081,1744297851737,-500.0,0.00038356,4]
[357667082,1744297851747,-918.64,0.00038356,4]
[357667083,1744297851756,-502.99038723,0.00038356,4]
[357667084,1744297851765,-537.37103854,0.00038356,4]
[357667085,1744297851774,-500.0,0.00038356,4]
[357667086,1744297851783,-500.0,0.00038356,4]
[357667087,1744297851792,-500.0,0.00038356,4]
[357667088,1744297851802,-500.0,0.00038356,4]
[357667089,1744297851811,-500.0,0.00038356,4]
[357667090,1744297851820,-500.0,0.00038356,4]
[357667091,1744297851829,-500.0,0.00038356,4]
[357667092,1744297851838,-500.0,0.00038356,4]
[357667093,1744297851847,-500.0,0.00038356,4]
[357667094,1744297851856,-500.0,0.00038356,4]
[357667095,1744297851865,-151.0,0.00038356,7]
[357667096,1744297851875,-505.35404764,0.00038356,4]
[357667097,1744297851885,-2064.58,0.00038356,4]
[357667098,1744297851894,-500.0,0.00038356,4]
[357667099,1744297851903,-500.0,0.00038356,4]
[357667100,1744297851913,-527.26,0.00038356,4]
[357667101,1744297851922,-480.53560626,0.00038356,4]
[357667102,1744297851931,-758.49,0.00038356,4]
[357667103,1744297851942,-500.0,0.00038356,4]
[357667104,1744297851951,-500.0,0.00038356,4]
[357667105,1744297851961,-727.6,0.00038356,4]
[357667106,1744297851970,-500.0,0.00038356,4]
[357667107,1744297851980,-151.0,0.00038356,7]
[357667108,1744297851990,-500.0,0.00038356,4]
[357667109,1744297851999,-500.0,0.00038356,4]
[357667110,1744297852008,-500.0,0.00038356,4]
[357667111,1744297852018,-565.06,0.00038356,4]
[357667112,1744297852027,-500.0,0.00038356,4]
[357667113,1744297852037,-586.07,0.00038356,4]
[357667114,1744297852047,-500.0,0.00038356,4]
[357667115,1744297852057,-752.07,0.00038356,4]
[357667116,1744297852066,-500.0,0.00038356,4]
[357667117,1744297852076,-500.0,0.00038356,4]
[357667118,1744297852085,-500.0,0.00038356,4]
[357667119,1744297852095,-518.52909856,0.00038356,4]
[357667120,1744297852105,-500.0,0.00038356,4]
[357667121,1744297852115,-500.0,0.00038356,4]
[357667122,1744297852124,-500.0,0.00038356,4]
[357667123,1744297852134,-500.0,0.00038356,4]
[357667124,1744297852143,-694.93,0.00038356,4]
[357667125,1744297852153,-506.13079781,0.00038356,4]
[357667126,1744297852162,-536.16,0.00038356,4]
[357667127,1744297852172,-522.23935088,0.00038356,4]
[357667128,1744297852182,-531.39,0.00038356,4]
[357667129,1744297852191,-500.0,0.00038356,4]
[357667130,1744297852201,-610.71057514,0.00038356,4]
[357667131,1744297852211,-564.45,0.00038356,4]
[357667132,1744297852391,-888.62,0.00038356,4]
[357667133,1744297852401,-500.0,0.00038356,4]
[357667134,1744297852411,-500.0,0.00038356,4]
[357667135,1744297852421,-673.58,0.00038356,4]
[357667136,1744297852430,-151.0,0.00038356,7]
[357667137,1744297852440,-506.66729404,0.00038356,4]
[357667138,1744297852450,-500.0,0.00038356,4]
[357667139,1744297852459,-152.372545,0.00038356,7]
[357667140,1744297852469,-500.0,0.00038356,4]
[357667141,1744297852478,-500.0,0.00038356,4]
[357667142,1744297852488,-452.87297074,0.00038356,4]
[357667143,1744297852526,-540.49702926,0.00038356,4]
[357667144,1744297852535,-500.0,0.00038356,4]
[357667145,1744297852545,-500.0,0.00038356,4]
[357667146,1744297852554,-500.0,0.00038356,4]
[357667147,1744297852563,-500.0,0.00038356,4]
[357667148,1744297852574,-500.0,0.00038356,4]
[357667149,1744297852585,-500.0,0.00038356,4]
[357667150,1744297852595,-592.48,0.00038356,4]
[357667151,1744297852604,-88.02297074,0.00038356,4]
[357667154,1744297935753,200.0,0.00043812,30]
[357667155,1744297936332,207.4,0.00043812,30]
[357667156,1744297937022,215.0738,0.00043812,30]
[357667157,1744297937663,223.0315306,0.00043812,30]
[357667158,1744297938296,231.28369723,0.00043812,30]
[357667159,1744297939193,239.84119403,0.00043812,30]
[357667160,1744297939589,248.71531821,0.00043812,30]
[357667161,1744297940256,257.91778498,0.00043812,30]
[357667162,1744297940937,267.46074303,0.00043812,30]
[357667163,1744297941580,277.35679052,0.00043812,30]
[357667164,1744297942251,287.61899177,0.00043812,30]
[357667165,1744297942961,298.26089446,0.00043812,30]
[357667166,1744297943650,309.29654756,0.00043812,30]
[357667167,1744297944347,320.74051982,0.00043812,30]
[357667168,1744297944984,332.60791905,0.00043812,30]
[357667169,1744297945632,344.91441206,0.00043812,30]
[357667170,1744297946342,357.6762453,0.00043812,30]
[357667171,1744297946993,370.91026638,0.00043812,30]
[357667172,1744297947671,384.63394623,0.00043812,30]
[357667173,1744297948342,384.63394623,0.00043812,30]
[357667174,1744298021457,2000.0,0.00043812,30]